bitfinex-derivatives/quotes_SOLF0:USTF0_20240905
["timestamp","ask_amount","ask_price","bid_price","bid_amount"]
[1725554721546,3.8245,130.75,130.66,1.3065]
[1725554721547,3.82496936,130.75,130.67,23.2479]
[1725554721746,20.6,130.75,130.68,3.8261]
[1725554722051,3.8256,130.71,130.68,3.8261]
[1725554722449,3.87694966,130.71,130.68,3.88438806]
[1725554722649,0.05134966,130.71,130.68,0.05828806]
[1725554723251,3.826,130.69,130.68,0.05828806]
[1725554723451,20.6,130.69,130.61,2.6753]
[1725554723644,20.6,130.69,130.58,126.57740377]
[1725554723850,3.8276,130.64,130.6,3.8284]
[1725554724242,3.8269,130.66,130.6,20.6]
[1725554724444,0.05743355,130.64,130.62,0.053343]
[1725554724952,3.8277,130.63,130.62,0.053343]
[1725554730455,0.05743355,130.64,130.62,0.053343]
[1725554731158,3.8277,130.63,130.62,0.053343]
[1725554731360,3.8277,130.63,130.58,102.05680958]
[1725554731361,25.73,130.63,130.56,6.5049]
[1725554731560,25.73,130.63,130.56,1.3552]
[1725554731756,25.73,130.63,130.53,3.86115041]
[1725554732065,25.73,130.63,130.55,3.8299]
[1725554732258,3.8294,130.58,130.55,3.8299]
[1725554732561,25.78243946,130.6,130.55,0.05119071]
[1725554732760,3.82936352,130.59,130.56,0.05576811]
[1725554732956,3.8296,130.57,130.56,0.05576811]
[1725554733158,25.78243946,130.6,130.56,0.05576811]
[1725554733361,0.05243946,130.6,130.56,0.05576811]
[1725554733558,3.92354721,130.6,130.56,0.05576811]
[1725554733975,0.05243946,130.6,130.56,0.05576811]
[1725554734261,3.8292,130.59,130.56,0.05576811]
[1725554734561,0.05243946,130.6,130.56,0.05576811]
[1725554735163,3.8294,130.58,130.56,0.05576811]
[1725554735354,3.88701182,130.6,130.56,0.05576811]
[1725554735869,3.829,130.59,130.56,3.88536811]
[1725554736363,3.8292,130.58,130.56,0.05576811]
[1725554737058,0.05243946,130.6,130.56,3.88536811]
[1725554737452,3.88123946,130.6,130.57,3.8293]
[1725554738061,0.05243946,130.6,130.58,3.8291]
[1725554738859,0.05243946,130.6,130.56,0.05576811]
[1725554739562,0.05243946,130.6,130.58,3.8291]
[1725554740756,0.05243946,130.6,130.56,0.05576811]
[1725554741153,3.88113946,130.6,130.56,0.05576811]
[1725554741363,3.88113946,130.6,130.57,3.8292]
[1725554741967,7.73130033,130.6,130.57,3.8292]
[1725554742167,7.73130033,130.6,130.56,0.05576811]
[1725554742168,3.90260033,130.6,130.56,0.05576811]
[1725554742562,3.829,130.59,130.56,0.05576811]
[1725554742761,3.90260033,130.6,130.56,0.05576811]
[1725554743368,3.829,130.59,130.56,0.05576811]
[1725554743667,3.90260033,130.6,130.56,0.05576811]
[1725554743860,3.8292,130.58,130.56,0.05576811]
[1725554744181,3.90260033,130.6,130.56,0.05576811]
[1725554745463,3.8295,130.57,130.56,0.05576811]
[1725554745877,3.8293,130.58,130.56,0.05576811]
[1725554747972,0.05243946,130.6,130.59,3.8289]
[1725554748173,20.58,130.67,130.59,20.58]
[1725554748367,228.0,130.69,130.59,20.58]
[1725554748368,3.77757661,130.66,130.59,24.47557799]
[1725554748668,3.827,130.66,130.62,3.8278]
[1725554748869,7.7298573,130.66,130.62,3.8278]
[1725554749265,0.05791251,130.65,130.63,0.05226152]
[1725554750377,0.05791251,130.65,130.64,3.8275]
[1725554751368,0.05791251,130.65,130.63,3.87996152]
[1725554751970,0.05791251,130.65,130.63,0.05226152]
[1725554752575,3.88521251,130.65,130.63,0.05226152]
[1725554753273,3.8275,130.64,130.63,0.05226152]
[1725554754181,3.88511251,130.65,130.63,0.05226152]
[1725554758083,3.8275,130.64,130.63,0.05226152]
[1725554762493,0.05791251,130.65,130.63,0.05226152]
[1725554762799,3.75047074,130.72,130.63,0.05226152]
[1725554762995,27.094,130.73,130.63,29.5777]
[1725554763289,27.094,130.73,130.63,3.89025649]
[1725554763493,27.094,130.73,130.61,25.75]
[1725554763686,3.8259,130.7,130.61,25.75]
[1725554763883,0.05180857,130.68,130.66,0.04952559]
[1725554766687,0.05180857,130.68,130.66,3.87632559]
[1725554768291,0.05180857,130.68,130.66,0.04952559]
[1725554768596,3.91215934,130.68,130.66,0.04952559]
[1725554768790,0.05180857,130.68,130.66,0.04952559]
[1725554769396,3.78543356,130.68,130.66,0.04952559]
[1725554769696,7.61183356,130.68,130.66,0.04952559]
[1725554770897,3.8266,130.67,130.66,0.04952559]
[1725554771593,7.61468356,130.67,130.66,0.04952559]
[1725554772095,3.8266,130.67,130.66,0.04952559]
[1725554772497,7.74522792,130.67,130.66,0.04952559]
[1725554773298,3.91862792,130.67,130.66,0.04952559]
[1725554773801,7.74522792,130.67,130.66,0.04952559]
[1725554775095,3.87830857,130.68,130.66,0.04952559]
[1725554775291,0.05180857,130.68,130.66,0.04952559]
[1725554775693,3.79347356,130.68,130.66,0.04952559]
[1725554775888,3.8266,130.67,130.66,0.04952559]
[1725554777199,7.63279071,130.68,130.66,3.87632559]
[1725554777590,7.63279071,130.68,130.66,0.04952559]
[1725554778294,0.05180857,130.68,130.66,0.04952559]
[1725554780096,3.87830857,130.68,130.66,0.04952559]
[1725554780800,0.05180857,130.68,130.66,3.87632559]
[1725554781605,0.05180857,130.68,130.67,3.8266]
[1725554782096,26.7931,130.8,130.75,3.8241]
[1725554782295,26.7931,130.8,130.7,20.6]
[1725554782296,0.64668378,130.79,130.7,20.6]
[1725554782495,24.5905,130.8,130.7,20.58]
[1725554782698,3.8235,130.78,130.74,3.8244]
[1725554782894,3.8235,130.78,130.72,20.6]
[1725554783095,3.9905,130.8,130.74,0.05423618]
[1725554783096,0.05147612,130.76,130.74,0.05423618]
[1725554785901,0.05147612,130.76,130.74,3.87853618]
[1725554786807,0.05147612,130.76,130.75,3.8242]
[1725554788703,0.05147612,130.76,130.74,3.87853618]
[1725554789700,0.05147612,130.76,130.75,3.8242]
[1725554793114,0.05147612,130.76,130.74,0.05423618]
[1725554793605,0.05147612,130.76,130.75,3.8242]
[1725554794408,0.05147612,130.76,130.74,3.87863618]
[1725554796003,0.05147612,130.76,130.75,3.8242]
[1725554796208,0.05147612,130.76,130.74,0.05423618]
[1725554797110,3.87557612,130.76,130.74,0.05423618]
[1725554799314,0.05147612,130.76,130.74,0.05423618]
[1725554799901,0.05147612,130.76,130.75,3.8242]
[1725554800517,0.05147612,130.76,130.74,0.05423618]
[1725554800904,3.87547612,130.76,130.74,3.87873618]
[1725554802332,0.05147612,130.76,130.68,1.4195]
[1725554802517,29.53435348,130.76,130.65,27.0254]
[1725554802711,25.7,130.76,130.65,27.0254]
[1725554803011,29.5779648,130.76,130.65,1.3254]
[1725554803331,25.7,130.73,130.65,1.3254]
[1725554803512,0.05731851,130.72,130.69,0.05552736]
[1725554803712,3.87445699,130.72,130.69,0.05552736]
[1725554804613,3.8257,130.7,130.69,0.05552736]
[1725554809525,0.05731851,130.72,130.69,0.05552736]
[1725554810023,0.05731851,130.72,130.7,3.8256]
[1725554811526,3.88241851,130.72,130.7,3.8256]
[1725554812228,0.05731851,130.72,130.7,3.8256]
[1725554813123,3.88261851,130.72,130.69,3.88132736]
[1725554814018,3.8254,130.71,130.69,3.88132736]
[1725554814924,3.8257,130.7,130.69,0.05552736]
[1725554815318,0.05731851,130.72,130.69,0.05552736]
[1725554815525,3.8257,130.7,130.69,0.05552736]
[1725554817331,7.56889862,130.7,130.69,0.05552736]
[1725554820127,3.8257,130.7,130.69,0.05552736]
[1725554820731,7.59722139,130.7,130.69,0.05552736]
[1725554820938,7.59722139,130.7,130.69,0.03552736]
[1725554822755,3.8278,130.63,130.59,1.3249]
[1725554822949,20.59,130.67,130.59,1.3249]
[1725554823638,0.05784687,130.64,130.62,0.05003989]
[1725554823842,3.80549379,130.63,130.62,0.05003989]
[1725554824030,7.63319379,130.63,130.62,0.05003989]
[1725554824734,3.8277,130.63,130.62,0.05003989]
[1725554824934,0.05784687,130.64,130.62,0.05003989]
[1725554825540,0.05784687,130.64,130.63,3.8277]
[1725554825737,0.05784687,130.64,130.62,0.05003989]
[1725554826743,0.05784687,130.64,130.62,3.87803989]
[1725554827466,0.05784687,130.64,130.62,0.05003989]
[1725554827648,3.87761354,130.63,130.62,0.05003989]
[1725554828147,3.8277,130.63,130.62,0.05003989]
[1725554829040,7.62451067,130.63,130.62,0.05003989]
[1725554830745,3.79681067,130.63,130.56,5.262]
[1725554830948,20.59,130.62,130.56,5.262]
[1725554831136,20.59,130.62,130.52,20.59]
[1725554831137,24.40922523,130.62,130.52,20.59]
[1725554831340,3.8291,130.59,130.52,20.59]
[1725554831538,24.40922523,130.62,130.52,20.59]
[1725554831747,3.8294,130.58,130.57,0.05250791]
[1725554833747,24.4194,130.58,130.57,0.05250791]
[1725554833950,3.8304,130.54,130.51,1.4145]
[1725554834249,20.59,130.56,130.46,20.59]
[1725554834547,20.59,130.53,130.45,20.59]
[1725554834949,0.0518525,130.5,130.48,0.05174262]
[1725554835450,3.8319,130.49,130.48,0.05174262]
[1725554836055,3.8834525,130.5,130.48,0.05174262]
[1725554836646,0.0518525,130.5,130.48,0.05174262]
[1725554838047,0.0518525,130.5,130.48,3.88374262]
[1725554838457,0.0518525,130.5,130.48,0.05174262]
[1725554838647,3.8834525,130.5,130.48,0.05174262]
[1725554839052,3.92641789,130.49,130.48,0.05174262]
[1725554839252,25.78,130.49,130.39,134.61005211]
[1725554839449,30.9222041,130.49,130.4,3.92680122]
[1725554839660,3.8329,130.46,130.42,3.8336]
[1725554839858,3.8329,130.46,130.4,3.92680122]
[1725554840158,3.8329,130.46,130.43,3.8335]
[1725554840362,3.88722544,130.46,130.43,3.88604495]
[1725554841166,0.05432544,130.46,130.44,3.8331]
[1725554841358,0.05432544,130.46,130.43,0.05254495]
[1725554841761,3.88712544,130.46,130.43,3.88614495]
[1725554842057,0.05432544,130.46,130.43,0.05254495]
[1725554842457,0.05432544,130.46,130.44,3.8331]
[1725554845169,0.05432544,130.46,130.45,3.833]
[1725554848364,0.05432544,130.46,130.44,3.8332]
[1725554848866,0.05432544,130.46,130.43,0.05254495]
[1725554849060,0.05432544,130.46,130.43,3.88604495]
[1725554849369,0.05432544,130.46,130.43,0.05254495]
[1725554849865,3.8333,130.44,130.43,0.05254495]
[1725554850061,0.05432544,130.46,130.43,0.05254495]
[1725554851068,3.833,130.45,130.43,0.05254495]
[1725554852060,3.833,130.45,130.43,3.88604495]
[1725554852268,3.88722544,130.46,130.43,0.05254495]
[1725554852564,0.05432544,130.46,130.45,3.833]
[1725554853673,0.05432544,130.46,130.44,3.8332]
[1725554854168,0.05432544,130.46,130.45,3.833]
[1725554854366,27.1898,130.53,130.41,25.78]
[1725554854771,3.832,130.49,130.41,25.78]
[1725554855171,3.80338931,130.5,130.41,25.78]
[1725554855472,0.05820003,130.47,130.44,0.05799465]
[1725554855672,0.05713609,130.47,130.44,0.05331492]
[1725554856065,3.88973609,130.47,130.45,3.8329]
[1725554856276,0.05713609,130.47,130.45,3.8329]
[1725554857479,3.88963609,130.47,130.45,3.8329]
[1725554858877,3.88963609,130.47,130.44,3.88651492]
[1725554859176,3.88963609,130.47,130.44,0.05331492]
[1725554859567,0.05713609,130.47,130.44,0.05331492]
[1725554860277,0.05713609,130.47,130.46,3.8327]
[1725554862577,0.05713609,130.47,130.45,3.8329]
[1725554862784,20.63,130.46,130.44,0.05331492]
[1725554863280,3.833,130.45,130.44,0.05331492]
[1725554863977,3.8338,130.43,130.4,3.8343]
[1725554864178,3.8130826,130.43,130.4,3.8343]
[1725554864381,3.8338,130.43,130.4,3.8343]
[1725554864876,7.73267404,130.43,130.4,3.89212052]
[1725554865479,3.88775822,130.43,130.41,3.8342]
[1725554865779,3.88775822,130.43,130.4,0.05782052]
[1725554866985,0.05395822,130.43,130.41,3.834]
[1725554869377,0.05395822,130.43,130.42,3.8339]
[1725554870284,0.05395822,130.43,130.41,3.834]
[1725554870486,3.88755822,130.43,130.41,3.834]
[1725554871082,3.8339,130.42,130.4,3.89212052]
[1725554871283,0.05395822,130.43,130.4,3.89212052]
[1725554871787,0.05395822,130.43,130.4,0.05782052]
[1725554872581,3.8342,130.41,130.4,0.05782052]
[1725554881287,3.8351,130.38,130.36,3.8355]
[1725554881491,20.63,130.4,130.34,1.3011]
[1725554881687,20.63,130.39,130.24,7.6781]
[1725554881889,20.63,130.35,130.27,3.9379]
[1725554882093,20.63,130.33,130.28,3.8379]
[1725554882296,7.80789214,130.32,130.29,0.0524951]
[1725554882590,3.97089214,130.32,130.29,0.0524951]
[1725554882988,3.8373,130.31,130.29,0.0524951]
[1725554883388,3.97089214,130.32,130.29,0.0524951]
[1725554883389,3.8374,130.3,130.29,0.0524951]
[1725554883996,7.80799214,130.32,130.29,0.0524951]
[1725554884594,3.8372,130.31,130.29,0.0524951]
[1725554885191,3.89320623,130.32,130.29,3.8901951]
[1725554885787,0.05620623,130.32,130.29,3.8901951]
[1725554885985,0.05620623,130.32,130.29,0.0524951]
[1725554886493,0.05620623,130.32,130.3,3.8372]
[1725554886888,0.05620623,130.32,130.29,0.0524951]
[1725554887292,24.41848368,130.33,130.21,5.12730038]
[1725554887293,20.63,130.31,130.21,5.12730038]
[1725554887491,20.63,130.28,130.21,5.12730038]
[1725554887685,24.4682,130.28,130.25,3.8387]
[1725554887888,24.4682,130.28,130.21,5.12730038]
[1725554888091,3.8379,130.29,130.27,3.8383]
[1725554888286,0.05362382,130.29,130.27,0.05025566]
[1725554888791,0.05362382,130.29,130.27,3.88835566]
[1725554889495,0.05362382,130.29,130.28,3.838]
[1725554889796,0.05362382,130.29,130.27,0.05025566]
[1725554890297,3.89152382,130.29,130.27,3.88855566]
[1725554890692,3.89152382,130.29,130.27,0.05025566]
[1725554891391,0.05362382,130.29,130.27,3.88835566]
[1725554893094,0.05362382,130.29,130.28,3.838]
[1725554894493,3.8362,130.35,130.28,5.15177773]
[1725554894694,20.63,130.36,130.28,5.15177773]
[1725554894893,20.63,130.36,130.31,3.8369]
[1725554895094,3.8363,130.34,130.31,3.8369]
[1725554895399,0.05187716,130.34,130.31,3.8884905]
[1725554895594,3.88827716,130.34,130.31,3.8884905]
[1725554895892,0.05187716,130.34,130.31,0.0513905]
[1725554896097,0.05187716,130.34,130.32,3.8368]
[1725554896600,0.05187716,130.34,130.33,3.8366]
[1725554899101,0.05187716,130.34,130.32,3.8368]
[1725554899300,0.05187716,130.34,130.31,0.0513905]
[1725554899698,3.91235005,130.33,130.31,0.0513905]
[1725554899896,3.8369,130.32,130.31,0.0513905]
[1725554900100,24.53352202,130.32,130.26,1.3245]
[1725554900395,20.63,130.3,130.27,3.8382]
[1725554900604,24.42528277,130.3,130.27,3.8382]
[1725554901199,20.68364014,130.3,130.27,3.89045683]
[1725554902099,20.68364014,130.3,130.28,3.838]
[1725554902295,20.68364014,130.3,130.27,0.05225683]
[1725554902696,20.68364014,130.3,130.27,3.89035683]
[1725554903697,24.52134014,130.3,130.27,3.89035683]
[1725554903897,20.68364014,130.3,130.27,0.05225683]
[1725554904503,3.8379,130.29,130.27,0.05225683]
[1725554905099,24.468,130.28,130.27,0.05225683]
[1725554905494,20.63,130.28,130.27,0.05225683]
[1725554907096,20.63,130.28,130.27,3.89055683]
[1725554907500,20.68364014,130.3,130.27,0.05225683]
[1725554907996,20.68364014,130.3,130.28,3.8379]
[1725554909002,0.05364014,130.3,130.29,3.8377]
[1725554912897,20.68364014,130.3,130.27,0.05225683]
[1725554913101,24.52114014,130.3,130.27,0.05225683]
[1725554913305,24.52114014,130.3,130.27,3.89045683]
[1725554914107,24.52114014,130.3,130.28,3.838]
[1725554914604,20.68364014,130.3,130.28,3.838]
[1725554915507,0.05364014,130.3,130.28,3.838]
[1725554916098,3.89114014,130.3,130.28,3.838]
[1725554916903,0.05364014,130.3,130.28,3.838]
[1725554917608,3.89124014,130.3,130.28,3.838]
[1725554917809,3.89124014,130.3,130.27,0.05225683]
[1725554917810,20.68364014,130.3,130.27,0.05225683]
[1725554918208,24.468,130.28,130.27,0.05225683]
[1725554918521,24.468,130.28,130.23,1.3325]
[1725554918522,20.63,130.28,130.23,3.8395]
[1725554918804,3.8388,130.26,130.23,3.8395]
[1725554919016,3.8388,130.26,130.2,2.6788]
[1725554919207,3.8384,130.27,130.2,2.6788]
[1725554919603,0.05473667,130.25,130.2,2.6788]
[1725554919810,0.05473667,130.25,130.24,3.839]
[1725554921622,228.0,130.37,130.21,20.63]
[1725554921810,24.4673,130.31,130.21,20.63]
[1725554922009,20.63,130.31,130.27,3.8382]
[1725554922210,20.63,130.33,130.27,3.8382]
[1725554922514,0.05595266,130.31,130.29,0.0511122]
[1725554922710,0.05290672,130.31,130.29,0.05607852]
[1725554922910,3.89020672,130.31,130.29,0.05607852]
[1725554924308,24.52020672,130.31,130.29,0.05607852]
[1725554925308,3.8374,130.3,130.29,0.05607852]
[1725554925714,20.68290672,130.31,130.29,0.05607852]
[1725554926117,24.52020672,130.31,130.29,0.05607852]
[1725554927620,20.68290672,130.31,130.29,0.05607852]
[1725554928418,3.8374,130.3,130.29,0.05607852]
[1725554928716,20.63,130.31,130.2,2.6788]
[1725554928920,20.63,130.32,130.2,2.6788]
[1725554928921,24.4682,130.28,130.2,2.6788]
[1725554929321,24.4682,130.28,130.26,3.8385]
[1725554929613,24.52227945,130.28,130.26,3.8385]
[1725554929814,0.05407945,130.28,130.26,3.8385]
[1725554930820,0.05407945,130.28,130.27,3.8383]
[1725554931133,0.04880173,130.29,130.27,3.8383]
[1725554931820,0.04880173,130.29,130.26,3.8385]
[1725554932017,3.89069761,130.29,130.26,3.8385]
[1725554933422,0.05279761,130.29,130.21,20.63]
[1725554933615,0.05443257,130.26,130.21,20.63]
[1725554933815,0.05443257,130.26,130.25,3.8389]
[1725554937521,0.05443257,130.26,130.21,20.63]
[1725554937722,0.05443257,130.26,130.21,28.3101]
[1725554938622,0.05443257,130.26,130.25,3.8389]
[1725554939122,3.8373,130.31,130.29,3.8377]
[1725554940218,3.8374,130.3,130.29,0.05317679]
[1725554940432,0.05433378,130.31,130.29,0.05317679]
[1725554941025,3.89163378,130.31,130.29,3.89077679]
[1725554941325,0.05433378,130.31,130.29,0.05317679]
[1725554941718,0.05433378,130.31,130.3,3.8374]
[1725554943626,0.05433378,130.31,130.29,0.05317679]
[1725554943627,0.05433378,130.31,130.29,3.89077679]
[1725554944128,0.05433378,130.31,130.29,0.05317679]
[1725554944324,0.05433378,130.31,130.29,3.89057679]
[1725554944928,0.05433378,130.31,130.3,3.8374]
[1725554946932,0.05433378,130.31,130.29,3.89077679]
[1725554947135,0.05433378,130.31,130.29,0.05317679]
[1725554947830,0.05433378,130.31,130.3,3.8374]
[1725554948133,1.2989,130.38,130.29,0.05317679]
[1725554948339,3.8353,130.38,130.35,3.8357]
[1725554948827,3.8354,130.37,130.35,3.8357]
[1725554949332,0.05894404,130.37,130.35,0.0525146]
[1725554951435,20.68894404,130.37,130.35,0.0525146]
[1725554951635,0.05894404,130.37,130.35,0.0525146]
[1725554952138,3.89444404,130.37,130.35,0.0525146]
[1725554954236,3.8357,130.36,130.35,0.0525146]
[1725554955141,20.68894404,130.37,130.27,20.63]
[1725554955142,20.68894404,130.37,130.27,2.799]
[1725554955447,20.63,130.32,130.26,3.8385]
[1725554955631,20.63,130.29,130.23,4.1067]
[1725554955836,24.39370992,130.29,130.23,4.1067]
[1725554956240,0.05599205,130.27,130.25,0.05885402]
[1725554956842,3.8386,130.26,130.25,0.05885402]
[1725554957637,3.89439205,130.27,130.25,0.05885402]
[1725554960647,7.82459072,130.27,130.25,0.05885402]
[1725554961055,3.8386,130.26,130.25,0.05885402]
[1725554961348,20.63,130.26,130.21,3.8401]
[1725554961643,20.63,130.24,130.16,20.63]
[1725554961949,20.63,130.24,130.19,3.8407]
[1725554962450,0.05120954,130.23,130.19,3.8407]
[1725554962947,0.05120954,130.23,130.16,1.3595]
[1725554962948,20.63,130.22,130.16,1.3595]
[1725554963247,0.05690348,130.2,130.16,1.3595]
[1725554963453,0.05873479,130.19,130.17,3.841]
[1725554963854,0.05873479,130.19,130.13,112.29844364]
[1725554963856,20.68873479,130.19,130.13,112.29844364]
[1725554964142,3.78255263,130.18,130.13,112.29844364]
[1725554964346,7.62375263,130.18,130.15,3.8418]
[1725554964857,3.8412,130.18,130.15,3.8418]
[1725554965249,0.05873479,130.19,130.13,112.29844364]
[1725554965657,0.05873479,130.19,130.16,3.8414]
[1725554966538,3.89943479,130.19,130.16,3.8414]
[1725554966951,0.05873479,130.19,130.16,3.8414]
[1725554968344,3.89943479,130.19,130.15,3.8417]
[1725554968548,20.63,130.18,130.15,3.8417]
[1725554968946,24.4711,130.18,130.15,3.8417]
[1725554969450,20.63,130.18,130.16,3.8415]
[1725554969752,0.0515533,130.18,130.11,24.55599969]
[1725554970055,0.0515533,130.18,130.16,3.8414]
[1725554970256,0.0515533,130.18,130.11,3.77987856]
[1725554970557,3.8413,130.17,130.14,3.842]
[1725554970748,3.89804225,130.17,130.14,3.842]
[1725554972348,0.05674225,130.17,130.16,3.8416]
[1725554973348,0.05674225,130.17,130.15,3.8417]
[1725554974558,0.05674225,130.17,130.16,3.8416]
[1725554976858,0.05674225,130.17,130.15,3.8417]
[1725554977560,20.68674225,130.17,130.1,4.0464]
[1725554977961,24.52814225,130.17,130.14,3.842]
[1725554978261,28.46365835,130.17,130.14,3.842]
[1725554979261,24.62225835,130.17,130.1,4.0464]
[1725554979756,24.62225835,130.17,130.11,3.8428]
[1725554979949,20.68674225,130.17,130.1,2.7073]
[1725554980195,3.8428,130.12,130.09,99.40989975]
[1725554980349,20.63,130.11,130.04,3.79150764]
[1725554980558,0.05290741,130.09,130.04,3.79150764]
[1725554980767,0.05290741,130.09,130.07,3.844]
[1725554981060,20.68290741,130.09,130.03,4.0977]
[1725554982463,20.68290741,130.09,130.05,3.8446]
[1725554982464,24.52670741,130.09,130.05,3.8446]
[1725554983261,24.52670741,130.09,130.06,3.8444]
[1725554983561,20.68290741,130.09,130.03,4.0977]
[1725554984158,20.68290741,130.09,130.06,3.8443]
[1725554984359,24.52660741,130.09,130.06,3.8443]
[1725554984762,20.68290741,130.09,130.07,3.8442]
[1725554984959,0.05290741,130.09,130.03,4.0977]
[1725554985161,0.05290741,130.09,130.05,20.63]
[1725554985360,0.05290741,130.09,130.08,3.8439]
[1725554986163,3.81864328,130.14,130.08,3.76777389]
[1725554986355,20.63,130.16,130.05,20.63]
[1725554986563,24.38085563,130.16,130.05,20.63]
[1725554986762,3.8424,130.14,130.05,20.63]
[1725554986973,20.63,130.14,130.05,20.63]
[1725554987162,0.05368261,130.11,130.08,0.04837582]
[1725554987362,0.05368261,130.11,130.1,3.8433]
[1725554988168,0.05368261,130.11,130.08,0.04837582]
[1725554989378,0.05368261,130.11,130.1,3.8433]
[1725554989761,0.05368261,130.11,130.09,3.8435]
[1725554991064,24.52688261,130.11,130.08,3.89227582]
[1725554991462,0.05368261,130.11,130.09,3.8435]
[1725554992769,3.89678261,130.11,130.08,3.89217582]
[1725554992969,3.89678261,130.11,130.08,0.04837582]
[1725554993472,0.05368261,130.11,130.09,3.8436]
[1725554994266,3.89678261,130.11,130.09,3.8436]
[1725554994870,3.89678261,130.11,130.08,3.89217582]
[1725554995070,0.05368261,130.11,130.08,0.04837582]
[1725554995574,0.05368261,130.11,130.1,3.8433]
[1725554996962,3.75085563,130.16,130.13,3.8423]
[1725554997275,20.63,130.19,130.09,7.89965011]
[1725554997863,0.0497745,130.15,130.13,0.05900078]
[1725555000174,0.0497745,130.15,130.14,3.8422]
[1725555000973,0.0497745,130.15,130.13,3.90130078]
[1725555001171,0.0497745,130.15,130.13,0.05900078]
[1725555002766,20.63,130.14,130.13,0.05900078]
[1725555002965,7.69116729,130.15,130.13,0.05900078]
[1725555003174,0.0497745,130.15,130.13,0.05900078]
[1725555003468,3.8917745,130.15,130.13,0.05900078]
[1725555003672,24.54267583,130.14,130.13,0.05900078]
[1725555003978,3.91267583,130.14,130.13,3.90150078]
[1725555004178,0.0497745,130.15,130.13,3.90150078]
[1725555004367,3.83369332,130.15,130.13,3.90150078]
[1725555004575,7.67559332,130.15,130.13,3.90150078]
[1725555004777,24.46369332,130.15,130.13,0.05900078]
[1725555005478,28.30579332,130.15,130.13,0.05900078]
[1725555005676,24.46369332,130.15,130.13,0.05900078]
[1725555005876,24.46369332,130.15,130.06,1.377]
[1725555006071,24.4728,130.12,130.09,3.8434]
[1725555006380,20.63,130.14,130.06,5.17542716]
[1725555006684,3.8428,130.12,130.09,3.8435]
[1725555006977,24.52528722,130.12,130.09,3.89891448]
[1725555007881,0.05248722,130.12,130.09,0.05541448]
[1725555008383,3.89538722,130.12,130.09,0.05541448]
[1725555008974,3.89538722,130.12,130.09,3.89891448]
[1725555009272,20.63,130.11,130.09,0.05541448]
[1725555009774,3.8433,130.1,130.09,0.05541448]
[1725555009974,7.78370753,130.1,130.09,0.05541448]
[1725555011178,0.05248722,130.12,130.11,3.843]
[1725555011576,1.3054,130.22,130.11,3.7620146]
[1725555011776,3.8411,130.18,130.12,1.3589]
[1725555011977,3.8411,130.18,130.12,5.25821379]
[1725555012278,3.8411,130.18,130.12,1.3589]
[1725555012473,0.05492305,130.16,130.14,0.05904564]
[1725555013668,0.05492305,130.16,130.15,3.8419]
[1725555014274,0.05492305,130.16,130.14,3.90104564]
[1725555015478,3.89662305,130.16,130.14,0.05904564]
[1725555016381,3.89662305,130.16,130.14,3.90114564]
[1725555017086,3.89662305,130.16,130.14,0.05904564]
[1725555017281,3.8419,130.15,130.14,0.05904564]
[1725555017491,20.63,130.15,130.07,1.3173]
[1725555017678,20.63,130.15,130.03,2.7092]
[1725555017679,20.63,130.1,130.03,2.7092]
[1725555018009,3.8438,130.09,130.03,2.7092]
[1725555018377,0.05136819,130.07,130.05,0.04885606]
[1725555018782,0.05136819,130.07,130.06,3.8445]
[1725555019981,0.05136819,130.07,130.05,3.89355606]
[1725555020381,0.05136819,130.07,130.05,0.04885606]
[1725555022686,3.89586819,130.07,130.05,0.04885606]
[1725555023087,0.05136819,130.07,130.05,0.04885606]
[1725555023282,7.60199884,130.06,130.05,0.04885606]
[1725555023787,3.75749884,130.06,130.05,0.04885606]
[1725555024085,3.78557145,130.06,130.05,0.04885606]
[1725555024285,3.78557145,130.06,129.99,3.8447931]
[1725555024286,3.8456,130.03,129.99,3.8465]
[1725555024783,25.84,130.04,129.99,3.8465]
[1725555025085,3.8456,130.03,129.99,3.8465]
[1725555025280,25.84,130.04,129.99,3.8465]
[1725555025479,3.846,130.01,129.98,3.8468]
[1725555025676,29.60231148,130.0,129.94,4.1243]
[1725555025879,29.60231148,130.0,129.92,3.8484]
[1725555025880,25.89902796,129.98,129.92,3.8484]
[1725555026182,25.89902796,129.98,129.9,1.3919]
[1725555026183,3.8478,129.95,129.9,1.3919]